fUST/lending_fUST_20240921
["ID","MTS","AMOUNT","RATE_DAILY","PERIOD"]
[338765006,1726911043762,-611.91,0.00014822,2]
[338765008,1726911043772,-500.0,0.00014822,2]
[338765010,1726911043782,-9803.62,0.00014822,2]
[338765012,1726911043791,-1634.7,0.00014822,2]
[338765014,1726911043801,-769.23,0.00014823,2]
[338765016,1726911043810,-500.0,0.00014823,2]
[338765018,1726911043820,-500.0,0.00014823,2]
[338765020,1726911043832,-500.0,0.00014823,2]
[338765023,1726911043842,-500.0,0.00014823,2]
[338765025,1726911043852,-1431.63,0.00014823,2]
[338765027,1726911043862,-500.0,0.00014823,2]
[338765028,1726911043871,-500.0,0.00014823,2]
[338765031,1726911043882,-595.95,0.00014823,2]
[338765033,1726911043893,-527.44,0.00014823,2]
[338765035,1726911043904,-503.686363,0.00014823,2]
[338765037,1726911043914,-726.39,0.00014823,2]
[338765039,1726911043925,-503.686363,0.00014823,2]
[338765042,1726911043937,-500.0,0.00014823,2]
[338765044,1726911043947,-654.530054,0.00014823,2]
[338765046,1726911043959,-500.0,0.00014824,2]
[338765048,1726911043978,-500.0,0.00014824,2]
[338765050,1726911043988,-500.0,0.00014824,2]
[338765052,1726911043998,-500.0,0.00014824,2]
[338765054,1726911044008,-500.0,0.00014824,2]
[338765056,1726911044018,-500.0,0.00014824,2]
[338765058,1726911044027,-500.0,0.00014824,2]
[338765060,1726911044038,-500.0,0.00014824,2]
[338765062,1726911044049,-500.0,0.00014824,2]
[338765064,1726911044059,-500.0,0.00014824,2]
[338765066,1726911044068,-500.0,0.00014824,2]
[338765068,1726911044077,-500.0,0.00014824,2]
[338765071,1726911044088,-500.0,0.00014824,2]
[338765073,1726911044098,-634.15936796,0.00014824,2]
[338765075,1726911044111,-500.0,0.00014824,2]
[338765077,1726911044121,-500.0,0.00014824,2]
[338765079,1726911044130,-500.0,0.00014824,2]
[338765081,1726911044139,-500.0,0.00014824,2]
[338765083,1726911044148,-546.72,0.00014824,2]
[338765085,1726911044157,-500.0,0.00014824,2]
[338765087,1726911044167,-500.0,0.00014824,2]
[338765089,1726911044176,-468.04690148,0.00014824,2]
[338765091,1726911044186,-707.16,0.00014824,2]
[338765093,1726911044195,-500.0,0.00014824,2]
[338765095,1726911044205,-500.0,0.00014824,2]
[338765097,1726911044217,-500.0,0.00014824,2]
[338765100,1726911044227,-500.0,0.00014824,2]
[338765101,1726911044236,-500.0,0.00014824,2]
[338765104,1726911044246,-500.0,0.00014824,2]
[338765105,1726911044255,-500.0,0.00014824,2]
[338765107,1726911044264,-500.0,0.00014824,2]
[338765109,1726911044274,-500.0,0.00014824,2]
[338765111,1726911044282,-500.0,0.00014824,2]
[338765113,1726911044292,-500.0,0.00014824,2]
[338765115,1726911044301,-541.539626,0.00014824,2]
[338765117,1726911044312,-500.0,0.00014824,2]
[338765120,1726911044322,-500.0,0.00014824,2]
[338765122,1726911044331,-500.0,0.00014824,2]
[338765124,1726911044341,-500.0,0.00014824,2]
[338765126,1726911044352,-691.57,0.00014824,2]
[338765128,1726911044361,-500.0,0.00014824,2]
[338765130,1726911044371,-500.0,0.00014824,2]
[338765132,1726911044381,-539.98,0.00014824,2]
[338765134,1726911044390,-500.0,0.00014824,2]
[338765136,1726911044401,-500.0,0.00014824,2]
[338765138,1726911044412,-500.0,0.00014824,2]
[338765140,1726911044422,-500.0,0.00014824,2]
[338765143,1726911044433,-500.0,0.00014824,2]
[338765145,1726911044444,-500.0,0.00014824,2]
[338765147,1726911044453,-500.0,0.00014824,2]
[338765148,1726911044467,-500.0,0.00014824,2]
[338765150,1726911044476,-500.0,0.00014824,2]
[338765152,1726911044485,-500.0,0.00014824,2]
[338765154,1726911044494,-500.0,0.00014824,2]
[338765156,1726911044504,-500.0,0.00014824,2]
[338765158,1726911044513,-500.0,0.00014824,2]
[338765160,1726911044523,-500.0,0.00014824,2]
[338765162,1726911044532,-500.0,0.00014824,2]
[338765164,1726911044541,-278.10359083,0.00014824,2]
[338765166,1726911044551,-500.0,0.00014824,2]
[338765168,1726911044561,-464.43897903,0.00014824,2]
[338765170,1726911044571,-500.0,0.00014824,2]
[338765172,1726911044580,-500.0,0.00014824,2]
[338765174,1726911044590,-500.0,0.00014824,2]
[338765176,1726911044599,-1199.33,0.00014824,2]
[338765178,1726911044608,-500.0,0.00014824,2]
[338765180,1726911044617,-500.0,0.00014824,2]
[338765182,1726911044627,-447.81982127,0.00014824,2]
[338765184,1726911044637,-500.0,0.00014824,2]
[338765186,1726911044646,-500.0,0.00014825,2]
[338765188,1726911044656,-903.072,0.00014827,2]
[338765190,1726911044665,-252.2041662,0.00014831,2]
[338765191,1726911044674,-882.8884595,0.00014855,2]
[338765193,1726911044683,-2154.74876041,0.0001489,2]
[338765195,1726911044692,-411.7313822,0.00014932,2]
[338765197,1726911044701,-411.7313822,0.00014932,2]
[338765200,1726911044715,-411.651906,0.00014932,2]
[338765202,1726911044726,-3172.49798455,0.00014949,2]
[338765204,1726911044735,-3172.49798455,0.00014951,2]
[338765206,1726911044744,-3172.49798455,0.00014951,2]
[338765208,1726911044753,-3172.49798455,0.00014955,2]
[338765210,1726911044762,-151.0,0.00014958,2]
[338765212,1726911044771,-1382.821588,0.00014958,2]
[338765214,1726911044780,-205.556913,0.00014958,2]
[338765216,1726911044789,-1382.821588,0.00014958,2]
[338765218,1726911044798,-205.556913,0.00014958,2]
[338765220,1726911044808,-151.0,0.00014958,2]
[338765222,1726911044816,-151.0,0.00014958,2]
[338765224,1726911044826,-202.734814,0.00014958,2]
[338765226,1726911044835,-202.734814,0.00014958,2]
[338765228,1726911044844,-151.0,0.00014958,2]
[338765230,1726911044853,-364.280674,0.00014958,2]
[338765232,1726911044863,-151.0,0.00014958,2]
[338765234,1726911044873,-212.810448,0.00014958,2]
[338765236,1726911044886,-364.280674,0.00014958,2]
[338765238,1726911044896,-212.810448,0.00014958,2]
[338765240,1726911044907,-151.0,0.00014958,2]
[338765242,1726911044918,-151.440948,0.00014958,2]
[338765244,1726911044929,-151.0,0.00014959,2]
[338765246,1726911044938,-151.0,0.00014959,2]
[338765248,1726911044947,-151.0,0.00014959,2]
[338765250,1726911044957,-151.0,0.00014959,2]
[338765252,1726911044970,-151.0,0.00014959,2]
[338765254,1726911044979,-151.0,0.00014959,2]
[338765256,1726911044988,-151.0,0.00014959,2]
[338765258,1726911045000,-1182.890194,0.00014959,2]
[338765260,1726911045011,-1182.890194,0.00014959,2]
[338765263,1726911045022,-151.0,0.00014959,2]
[338765265,1726911045033,-1684.910898,0.00014959,2]
[338765267,1726911045043,-1684.910898,0.00014959,2]
[338765269,1726911045052,-267.969101,0.00014959,2]
[338765270,1726911045061,-267.969101,0.00014959,2]
[338765272,1726911045070,-151.0,0.00014959,2]
[338765274,1726911045079,-453.16428447,0.00014959,2]
[338765284,1726911045237,-172.87683153,0.00014959,2]
[338765285,1726911045246,-626.041116,0.00014959,2]
[338765286,1726911045256,-151.0,0.00014959,2]
[338765287,1726911045266,-240.041004,0.00014959,2]
[338765288,1726911045276,-240.041004,0.00014959,2]
[338765289,1726911045286,-151.0,0.00014959,2]
[338765290,1726911045295,-151.0,0.00014959,2]
[338765291,1726911045304,-151.0,0.00014959,2]
[338765292,1726911045314,-1382.821588,0.00014959,2]
[338765293,1726911045324,-205.556913,0.00014959,2]
[338765294,1726911045333,-1382.821588,0.00014959,2]
[338765295,1726911045342,-205.556913,0.00014959,2]
[338765296,1726911045352,-151.0,0.00014959,2]
[338765297,1726911045361,-151.0,0.00014959,2]
[338765298,1726911045371,-202.734814,0.00014959,2]
[338765299,1726911045380,-202.734814,0.00014959,2]
[338765300,1726911045389,-151.0,0.00014959,2]
[338765301,1726911045398,-364.280674,0.00014959,2]
[338765302,1726911045408,-285.040111,0.00014959,2]
[338765303,1726911045417,-212.810448,0.00014959,2]
[338765304,1726911045427,-364.280674,0.00014959,2]
[338765306,1726911045439,-212.810448,0.00014959,2]
[338765308,1726911045451,-1314.070821,0.00014959,2]
[338765310,1726911045461,-994.056033,0.00014959,2]
[338765312,1726911045471,-1314.070821,0.00014959,2]
[338765314,1726911045481,-994.056033,0.00014959,2]
[338765316,1726911045491,-1922.623518,0.00014959,2]
[338765318,1726911045502,-1922.623518,0.00014959,2]
[338765320,1726911045512,-151.0,0.00014959,2]
[338765322,1726911045521,-1498.713248,0.00014959,2]
[338765324,1726911045531,-3172.49798455,0.0001496,2]
[338765326,1726911045542,-6344.9959691,0.0001496,2]
[338765328,1726911045551,-151.0,0.00014961,2]
[338765330,1726911045561,-151.0,0.00014961,2]
[338765332,1726911045570,-151.0,0.00014961,2]
[338765334,1726911045581,-151.0,0.00014961,2]
[338765336,1726911045591,-151.0,0.00014961,2]
[338765355,1726911045765,-151.0,0.00014961,2]
[338765357,1726911045775,-151.0,0.00014961,2]
[338765358,1726911045785,-1182.890194,0.00014961,2]
[338765360,1726911045795,-1182.890194,0.00014961,2]
[338765362,1726911045804,-151.0,0.00014961,2]
[338765365,1726911045814,-1684.910898,0.00014961,2]
[338765366,1726911045824,-1684.910898,0.00014961,2]
[338765369,1726911045833,-267.969101,0.00014961,2]
[338765370,1726911045843,-267.969101,0.00014961,2]
[338765372,1726911045852,-151.0,0.00014961,2]
[338765374,1726911045861,-626.041116,0.00014961,2]
[338765376,1726911045871,-626.041116,0.00014961,2]
[338765378,1726911045881,-151.0,0.00014961,2]
[338765381,1726911045893,-240.041004,0.00014961,2]
[338765383,1726911045904,-240.041004,0.00014961,2]
[338765385,1726911045913,-151.0,0.00014961,2]
[338765387,1726911045923,-151.0,0.00014961,2]
[338765389,1726911045933,-151.0,0.00014961,2]
[338765391,1726911045943,-1382.821588,0.00014961,2]
[338765393,1726911045954,-205.556913,0.00014961,2]
[338765395,1726911045964,-1382.821588,0.00014961,2]
[338765397,1726911045974,-205.556913,0.00014961,2]
[338765399,1726911045984,-151.0,0.00014961,2]
[338765401,1726911045993,-151.0,0.00014961,2]
[338765403,1726911046003,-252.2041662,0.00014961,2]
[338765405,1726911046012,-202.734814,0.00014961,2]
[338765407,1726911046022,-202.734814,0.00014961,2]
[338765409,1726911046032,-151.0,0.00014961,2]
[338765411,1726911046042,-364.280674,0.00014961,2]
[338765413,1726911046053,-212.810448,0.00014961,2]
[338765415,1726911046064,-364.280674,0.00014961,2]
[338765417,1726911046074,-212.810448,0.00014961,2]
[338765419,1726911046083,-1314.070821,0.00014961,2]
[338765421,1726911046093,-994.056033,0.00014961,2]
[338765423,1726911046103,-1314.070821,0.00014961,2]
[338765425,1726911046113,-150.33607425,0.00014961,2]
[338765428,1726911046128,-843.71995875,0.00014961,2]
[338765430,1726911046138,-815.05661628,0.00014961,2]
[338765440,1726911046226,-1754.8937024,0.00014439,2]
[338765443,1726911046246,-2202.83791179,0.00014439,2]
[338765445,1726911046255,-200.0,0.00014549,2]
[338765447,1726911046265,-1498.713248,0.00014959,2]
[338765449,1726911046274,-1107.56690172,0.00014961,2]
[338765451,1726911046283,-1922.623518,0.00014961,2]
[338765453,1726911046292,-151.0,0.00014961,2]
[338765455,1726911046302,-503.686363,0.00014961,2]
[338765457,1726911046311,-503.686363,0.00014961,2]
[338765459,1726911046320,-1498.713248,0.00014961,2]
[338765461,1726911046329,-654.530054,0.00014961,2]
[338765463,1726911046338,-1498.713248,0.00014961,2]
[338765465,1726911046348,-1796.686173,0.00014964,2]
[338765467,1726911046356,-1796.686173,0.00014964,2]
[338765469,1726911046366,-151.0,0.00014964,2]
[338765471,1726911046375,-151.0,0.00014964,2]
[338765472,1726911046385,-180.88245,0.00014964,2]
[338765474,1726911046394,-151.0,0.00014964,2]
[338765476,1726911046404,-1057.320379,0.00014964,2]
[338765478,1726911046413,-1057.320379,0.00014964,2]
[338765480,1726911046422,-347.355939,0.00014964,2]
[338765483,1726911046431,-347.355939,0.00014964,2]
[338765484,1726911046440,-1432.046111,0.00014964,2]
[338765486,1726911046450,-1432.046111,0.00014964,2]
[338765488,1726911046459,-633.123135,0.00014964,2]
[338765490,1726911046468,-633.123135,0.00014964,2]
[338765492,1726911046477,-2764.828088,0.00014964,2]
[338765494,1726911046487,-2764.828088,0.00014964,2]
[338765496,1726911046496,-253.765755,0.00014964,2]
[338765498,1726911046505,-253.765755,0.00014964,2]
[338765500,1726911046514,-151.0,0.00014965,2]
[338765502,1726911046524,-151.0,0.00014965,2]
[338765504,1726911046533,-151.0,0.00014965,2]
[338765506,1726911046542,-151.0,0.00014965,2]
[338765508,1726911046551,-151.0,0.00014965,2]
[338765510,1726911046561,-151.0,0.00014965,2]
[338765512,1726911046570,-151.0,0.00014965,2]
[338765514,1726911046578,-1182.890194,0.00014965,2]
[338765516,1726911046588,-1182.890194,0.00014965,2]
[338765518,1726911046597,-151.0,0.00014965,2]
[338765520,1726911046606,-1684.910898,0.00014965,2]
[338765522,1726911046615,-1684.910898,0.00014965,2]
[338765524,1726911046624,-267.969101,0.00014965,2]
[338765526,1726911046633,-267.969101,0.00014965,2]
[338765528,1726911046642,-151.0,0.00014965,2]
[338765530,1726911046651,-626.041116,0.00014965,2]
[338765531,1726911046660,-626.041116,0.00014965,2]
[338765533,1726911046669,-151.0,0.00014965,2]
[338765535,1726911046679,-240.041004,0.00014965,2]
[338765537,1726911046688,-240.041004,0.00014965,2]
[338765539,1726911046698,-151.0,0.00014965,2]
[338765541,1726911046707,-151.0,0.00014965,2]
[338765543,1726911046716,-151.0,0.00014965,2]
[338765545,1726911046725,-1382.821588,0.00014965,2]
[338765547,1726911046736,-205.556913,0.00014965,2]
[338765549,1726911046746,-1382.821588,0.00014965,2]
[338765551,1726911046756,-205.556913,0.00014965,2]
[338765553,1726911046766,-151.0,0.00014965,2]
[338765555,1726911046775,-151.0,0.00014965,2]
[338765557,1726911046787,-202.734814,0.00014965,2]
[338765559,1726911046797,-202.734814,0.00014965,2]
[338765561,1726911046806,-151.0,0.00014965,2]
[338765562,1726911046816,-364.280674,0.00014965,2]
[338765565,1726911046827,-212.810448,0.00014965,2]
[338765567,1726911046838,-364.280674,0.00014965,2]
[338765569,1726911046849,-212.810448,0.00014965,2]
[338765570,1726911046858,-1314.070821,0.00014965,2]
[338765572,1726911046867,-994.056033,0.00014965,2]
[338765574,1726911046877,-1314.070821,0.00014965,2]
[338765576,1726911046890,-994.056033,0.00014965,2]
[338765578,1726911046898,-1922.623518,0.00014965,2]
[338765580,1726911046907,-1922.623518,0.00014965,2]
[338765582,1726911046917,-151.0,0.00014965,2]
[338765583,1726911046926,-1498.713248,0.00014965,2]
[338765585,1726911046935,-151.0,0.0001497,2]
[338765587,1726911046944,-153.495417,0.0001497,2]
[338765589,1726911046953,-151.0,0.0001497,2]
[338765591,1726911046962,-151.295228,0.0001497,2]
[338765593,1726911046976,-151.0,0.0001497,2]
[338765595,1726911046985,-191.819638,0.0001497,2]
[338765597,1726911046994,-191.819638,0.0001497,2]
[338765599,1726911047004,-2763.559184,0.0001497,2]
[338765601,1726911047014,-1796.686173,0.0001497,2]
[338765603,1726911047023,-1796.686173,0.0001497,2]
[338765605,1726911047034,-151.0,0.0001497,2]
[338765607,1726911047043,-151.0,0.0001497,2]
[338765609,1726911047053,-151.0,0.0001497,2]
[338765611,1726911047062,-1057.320379,0.0001497,2]
[338765613,1726911047072,-1057.320379,0.0001497,2]
[338765615,1726911047081,-347.355939,0.0001497,2]
[338765617,1726911047090,-1432.046111,0.0001497,2]
[338765619,1726911047099,-347.355939,0.0001497,2]
[338765621,1726911047108,-1432.046111,0.0001497,2]
[338765623,1726911047118,-633.123135,0.0001497,2]
[338765625,1726911047127,-633.123135,0.0001497,2]
[338765627,1726911047136,-2764.828088,0.0001497,2]
[338765629,1726911047146,-2764.828088,0.0001497,2]
[338765631,1726911047155,-151.0,0.0001497,2]
[338765633,1726911047165,-275.346591,0.0001497,2]
[338765635,1726911047174,-300.830233,0.0001497,2]
[338765637,1726911047183,-151.0,0.0001497,2]
[338765639,1726911047192,-151.0,0.0001497,2]
[338765641,1726911047201,-253.765755,0.0001497,2]
[338765642,1726911047210,-151.0,0.0001497,2]
[338765644,1726911047221,-253.765755,0.0001497,2]
[338765646,1726911047230,-1182.890194,0.0001497,2]
[338765648,1726911047240,-1182.890194,0.0001497,2]
[338765650,1726911047249,-209.052271,0.0001497,2]
[338765652,1726911047258,-1684.910898,0.0001497,2]
[338765654,1726911047267,-1684.910898,0.0001497,2]
[338765656,1726911047277,-267.969101,0.0001497,2]
[338765658,1726911047286,-267.969101,0.0001497,2]
[338765660,1726911047296,-151.0,0.0001497,2]
[338765662,1726911047305,-626.041116,0.0001497,2]
[338765664,1726911047314,-626.041116,0.0001497,2]
[338765666,1726911047323,-151.0,0.0001497,2]
[338765668,1726911047332,-240.041004,0.0001497,2]
[338765670,1726911047341,-240.041004,0.0001497,2]
[338765672,1726911047351,-151.0,0.0001497,2]
[338765674,1726911047360,-255.771443,0.0001497,2]
[338765676,1726911047368,-151.0,0.0001497,2]
[338765678,1726911047378,-1382.821588,0.0001497,2]
[338765680,1726911047387,-205.556913,0.0001497,2]
[338765682,1726911047396,-1382.821588,0.0001497,2]
[338765684,1726911047406,-205.556913,0.0001497,2]
[338765686,1726911047415,-151.0,0.0001497,2]
[338765688,1726911047423,-298.366953,0.0001497,2]
[338765690,1726911047432,-202.734814,0.0001497,2]
[338765692,1726911047442,-202.734814,0.0001497,2]
[338765694,1726911047452,-151.0,0.0001497,2]
[338765696,1726911047461,-364.280674,0.0001497,2]
[338765698,1726911047471,-212.810448,0.0001497,2]
[338765700,1726911047480,-364.280674,0.0001497,2]
[338765702,1726911047489,-212.810448,0.0001497,2]
[338765704,1726911047499,-1314.070821,0.0001497,2]
[338765706,1726911047509,-994.056033,0.0001497,2]
[338765708,1726911047519,-1314.070821,0.0001497,2]
[338765710,1726911047528,-994.056033,0.0001497,2]
[338765712,1726911047537,-1922.623518,0.0001497,2]
[338765714,1726911047546,-1922.623518,0.0001497,2]
[338765716,1726911047555,-151.0,0.0001497,2]
[338765718,1726911047564,-503.686363,0.0001497,2]
[338765720,1726911047574,-503.686363,0.0001497,2]
[338765722,1726911047585,-1498.713248,0.0001497,2]
[338765724,1726911047598,-654.530054,0.0001497,2]
[338765727,1726911047613,-58958.64075488,0.0001497,2]
[338765729,1726911047626,-500.0,0.00014973,2]
[338765732,1726911047640,-500.0,0.00014973,2]
[338765734,1726911047652,-500.7431845,0.00014973,2]
[338765736,1726911047663,-500.0,0.00014973,2]
[338765738,1726911047674,-500.0,0.00014973,2]
[338765740,1726911047687,-500.0,0.00014973,2]
[338765742,1726911047699,-151.0,0.00014975,2]
[338765745,1726911047710,-151.0,0.00014975,2]
[338765747,1726911047724,-151.0,0.00014975,2]
[338765749,1726911047736,-151.0,0.00014975,2]
[338765751,1726911047748,-26260.083959,0.00014995,2]
[338765753,1726911047760,-815.24474978,0.00015,3]
[338765754,1726911047771,-150.112233,0.00015,2]
[338765755,1726911047784,-150.112234,0.00015,2]
[338765756,1726911047796,-150.112233,0.00015,2]
[338765757,1726911047807,-2172.6076108,0.00015035,2]
[338765758,1726911047819,-3172.49798455,0.0001504,2]
[338765759,1726911047830,-3172.49798455,0.00015048,2]
[338765760,1726911047841,-151.0,0.0001505,2]
[338765761,1726911047852,-151.0,0.0001505,2]
[338765762,1726911047863,-151.0,0.0001505,2]
[338765764,1726911047876,-151.0,0.0001505,2]
[338765767,1726911047890,-1182.890194,0.0001505,2]
[338765769,1726911047900,-1182.890194,0.0001505,2]
[338765771,1726911047912,-1684.910898,0.0001505,2]
[338765773,1726911047922,-1684.910898,0.0001505,2]
[338765775,1726911047932,-267.969101,0.0001505,2]
[338765777,1726911047943,-267.969101,0.0001505,2]
[338765779,1726911047954,-151.0,0.0001505,2]
[338765782,1726911047966,-626.041116,0.0001505,2]
[338765784,1726911047977,-626.041116,0.0001505,2]
[338765786,1726911047989,-151.0,0.0001505,2]
[338765788,1726911048001,-240.041004,0.0001505,2]
[338765791,1726911048013,-240.041004,0.0001505,2]
[338765793,1726911048025,-151.0,0.0001505,2]
[338765795,1726911048036,-151.0,0.0001505,2]
[338765797,1726911048049,-259.90582064,0.0001505,2]
[338780109,1726911232562,189.420081,0.0001384,2]
[338780113,1726911316212,174.968306,0.00013699,2]
[338780117,1726911544024,162.397312,0.00011781,2]
[338780118,1726911771035,189.420081,0.0001343,2]
[338780119,1726911847943,174.968306,0.00013699,2]
[338780121,1726912108266,10000.0,0.00014014,2]
[338780122,1726912221505,162.397312,0.00011781,2]
[338780123,1726912223568,2971.61152006,0.00014,2]
[338780154,1726912232594,-500.0,0.00014041,2]
[338780155,1726912232604,-500.0,0.00014041,2]
[338780156,1726912232613,-22.76150642,0.00014041,2]
[338780183,1726912238662,-485.87113552,0.00014041,2]
[338780185,1726912238671,-189.420081,0.0001413,2]
[338780187,1726912238680,-300.0,0.00014199,2]
[338780189,1726912238689,-300.0,0.00014199,2]
[338780191,1726912238699,-1000.09848495,0.000142,2]
[338780193,1726912238708,-1035.45267964,0.000142,2]
[338780373,1726912240454,-3964.54732036,0.000142,2]
[338780375,1726912240464,-500.0,0.00014272,2]
[338780377,1726912240473,-500.0,0.00014272,2]
[338780379,1726912240483,-500.0,0.00014272,2]
[338780381,1726912240493,-500.0,0.00014272,2]
[338780383,1726912240503,-500.0,0.00014272,2]
[338780385,1726912240512,-500.0,0.00014272,2]
[338780387,1726912240523,-1130.02,0.00014272,2]
[338780389,1726912240532,-500.0,0.00014272,2]
[338780391,1726912240541,-500.0,0.00014272,2]
[338780393,1726912240551,-248.73159553,0.00014272,2]
[338780395,1726912240560,-500.0,0.00014272,2]
[338780398,1726912240570,-500.0,0.00014272,2]
[338780400,1726912240580,-500.0,0.00014272,2]
[338780402,1726912240590,-500.0,0.00014272,2]
[338780404,1726912240599,-500.0,0.00014272,2]
[338780406,1726912240609,-500.0,0.00014272,2]
[338780408,1726912240619,-500.0,0.00014272,2]
[338780410,1726912240629,-500.0,0.00014272,2]
[338780412,1726912240639,-500.0,0.00014272,2]
[338780414,1726912240648,-500.0,0.00014272,2]
[338780416,1726912240657,-500.0,0.00014272,2]
[338780417,1726912240667,-500.0,0.00014272,2]
[338780420,1726912240677,-500.0,0.00014272,2]
[338780421,1726912240686,-500.0,0.00014272,2]
[338780423,1726912240696,-535.42,0.00014272,2]
[338780426,1726912240706,-500.0,0.00014272,2]
[338780428,1726912240716,-470.22010164,0.00014272,2]
[338780430,1726912240725,-500.0,0.00014272,2]
[338780432,1726912240735,-500.0,0.00014272,2]
[338780434,1726912240745,-500.0,0.00014272,2]
[338780436,1726912240755,-501.26830144,0.00014272,2]
[338780438,1726912240764,-500.0,0.00014272,2]
[338780440,1726912240774,-500.0,0.00014272,2]
[338780442,1726912240783,-11158.08,0.00014272,2]
[338780444,1726912240792,-1072.77,0.00014272,2]
[338780446,1726912240802,-504.94745652,0.00014272,2]
[338780447,1726912240811,-500.0,0.00014272,2]
[338780449,1726912240821,-500.0,0.00014272,2]
[338780451,1726912240830,-500.0,0.00014272,2]
[338780454,1726912240840,-500.0,0.00014272,2]
[338780456,1726912240850,-500.0,0.00014272,2]
[338780458,1726912240859,-500.0,0.00014273,2]
[338780460,1726912240868,-500.0,0.00014273,2]
[338780462,1726912240878,-500.0,0.00014273,2]
[338780464,1726912240888,-618.76,0.00014273,2]
[338780466,1726912240897,-705.13,0.00014273,2]
[338780468,1726912240907,-500.0,0.00014273,2]
[338780470,1726912240916,-500.0,0.00014273,2]
[338780472,1726912240925,-500.0,0.00014273,2]
[338780474,1726912240934,-500.0,0.00014273,2]
[338780476,1726912240946,-500.0,0.00014273,2]
[338780478,1726912240956,-500.0,0.00014273,2]
[338780480,1726912240965,-500.0,0.00014273,2]
[338780482,1726912240974,-500.0,0.00014273,2]
[338780484,1726912240983,-1312.32,0.00014273,2]
[338780486,1726912240993,-500.0,0.00014273,2]
[338780488,1726912241002,-500.0,0.00014273,2]
[338780490,1726912241011,-500.0,0.00014273,2]
[338780492,1726912241021,-500.0,0.00014273,2]
[338780493,1726912241030,-500.0,0.00014273,2]
[338780495,1726912241039,-500.0,0.00014273,2]
[338780497,1726912241049,-500.0,0.00014273,2]
[338780499,1726912241059,-500.0,0.00014273,2]
[338780501,1726912241068,-521.46,0.00014273,2]
[338780503,1726912241077,-500.0,0.00014273,2]
[338780505,1726912241088,-665.86,0.00014273,2]
[338780507,1726912241097,-500.0,0.00014273,2]
[338780509,1726912241107,-500.0,0.00014273,2]
[338780511,1726912241116,-258.17575354,0.00014273,2]
[338780513,1726912241125,-500.0,0.00014273,2]
[338780515,1726912241134,-500.0,0.00014274,2]
[338780517,1726912241143,-500.0,0.00014274,2]
[338780519,1726912241153,-501.16,0.00014274,2]
[338780521,1726912241162,-500.0,0.00014274,2]
[338780522,1726912241171,-500.0,0.00014274,2]
[338780524,1726912241181,-633.93,0.00014274,2]
[338780526,1726912241190,-500.0,0.00014274,2]
[338780528,1726912241199,-500.0,0.00014274,2]
[338780530,1726912241208,-500.0,0.00014274,2]
[338780532,1726912241218,-500.0,0.00014274,2]
[338780534,1726912241226,-500.0,0.00014274,2]
[338780536,1726912241236,-500.0,0.00014274,2]
[338780538,1726912241245,-500.0,0.00014274,2]
[338780540,1726912241255,-500.0,0.00014274,2]
[338780541,1726912241264,-416.98969922,0.00014274,2]
[338780543,1726912241274,-517.48,0.00014274,2]
[338780545,1726912241284,-500.0,0.00014274,2]
[338780547,1726912241293,-500.0,0.00014274,2]
[338780549,1726912241302,-572.82459338,0.00014274,2]
[338780551,1726912241312,-500.0,0.00014274,2]
[338780553,1726912241322,-500.0,0.00014274,2]